bitfinex-derivatives/quotes_SOLF0:USTF0_20250312
["timestamp","ask_amount","ask_price","bid_price","bid_amount"]
[1741757163275,43.12611893,121.87,121.84,8.2091]
[1741757164376,43.18678657,121.87,121.84,8.2091]
[1741757165682,51.39458657,121.87,121.84,8.2091]
[1741757165979,43.18678657,121.87,121.84,8.2091]
[1741757166281,31.88066764,121.87,121.85,8.2086]
[1741757166774,31.88066764,121.87,121.85,8.26866294]
[1741757167375,11.30611893,121.86,121.81,192.2142]
[1741757167577,11.30611893,121.83,121.81,192.2142]
[1741757167777,11.30611893,121.82,121.81,192.2142]
[1741757168276,11.30611893,121.82,121.78,2.204]
[1741757168484,11.30611893,121.8,121.79,0.05581984]
[1741757168672,0.05641368,121.81,121.79,0.05581984]
[1741757169081,0.05641368,121.81,121.79,8.26841984]
[1741757169276,246.2,121.9,121.8,11.30611893]
[1741757169483,11.30611893,121.89,121.85,8.2089]
[1741757169781,257.50611893,121.9,121.85,11.30611893]
[1741757170082,265.71211893,121.9,121.85,11.30611893]
[1741757170281,45.75155424,121.89,121.85,11.30611893]
[1741757170583,57.11020897,121.89,121.86,0.05646494]
[1741757172788,11.35865473,121.89,121.86,0.05646494]
[1741757173478,19.56505473,121.89,121.86,0.05646494]
[1741757173883,11.35865473,121.89,121.86,0.05646494]
[1741757174290,11.35865473,121.89,121.86,8.26426494]
[1741757175085,11.35865473,121.89,121.86,0.05646494]
[1741757175582,11.30611893,121.88,121.86,0.05646494]
[1741757175778,11.30611893,121.88,121.86,8.26426494]
[1741757176285,11.30611893,121.88,121.86,0.05646494]
[1741757176486,11.30611893,121.88,121.87,8.2077]
[1741757176688,11.35865473,121.89,121.87,8.2077]
[1741757176882,45.75155424,121.92,121.91,8.205]
[1741757179384,0.05285197,121.93,121.91,8.205]
[1741757181591,0.05285197,121.93,121.9,0.06075271]
[1741757181991,11.3589709,121.93,121.9,0.06075271]
[1741757182794,19.5626709,121.93,121.9,0.06075271]
[1741757184825,11.3589709,121.93,121.9,8.26625271]
[1741757185208,11.30611893,121.98,121.92,11.30611893]
[1741757185389,19.50651893,121.98,121.94,8.2025]
[1741757185608,11.30611893,121.97,121.92,11.30611893]
[1741757186095,11.30611893,121.97,121.93,8.2033]
[1741757186402,0.05704479,121.96,121.94,0.05954892]
[1741757187093,8.1992,122.0,121.95,11.30611893]
[1741757187393,51.28531893,122.0,121.95,11.30611893]
[1741757187789,51.28531893,122.0,121.96,8.2012]
[1741757187989,11.30611893,121.99,121.95,13.33871893]
[1741757188193,11.30611893,121.98,121.95,2.0326]
[1741757188394,11.30611893,121.97,121.96,0.0623201]
[1741757188591,19.50751893,121.97,121.96,0.0623201]
[1741757189790,19.55880812,121.98,121.96,0.0623201]
[1741757190292,11.35820812,121.98,121.96,0.0623201]
[1741757190595,0.05208919,121.98,121.96,0.0623201]
[1741757190797,0.05208919,121.98,121.96,8.2636201]
[1741757192894,43.06611893,121.97,121.96,0.0623201]
[1741757193098,43.06611893,121.97,121.88,11.30611893]
[1741757193296,11.30611893,121.93,121.88,11.30611893]
[1741757193494,43.06611893,121.94,121.89,11.30611893]
[1741757193698,43.06611893,121.95,121.9,11.30611893]
[1741757194099,0.055454,121.94,121.91,0.05536098]
[1741757194901,8.258454,121.94,121.91,0.05536098]
[1741757195097,0.055454,121.94,121.91,0.05536098]
[1741757195298,11.30611893,121.93,121.91,0.05536098]
[1741757195493,19.50981893,121.93,121.91,0.05536098]
[1741757196498,11.30611893,121.93,121.91,0.05536098]
[1741757197403,19.50991893,121.93,121.91,0.05536098]
[1741757198105,11.30611893,121.93,121.91,0.05536098]
[1741757199099,11.30611893,121.92,121.91,0.05536098]
[1741757199507,43.06611893,121.92,121.91,0.05536098]
[1741757200401,0.055454,121.94,121.91,11.36147991]
[1741757200602,0.055454,121.94,121.93,11.30611893]
[1741757201306,0.055454,121.94,121.93,19.50981893]
[1741757202405,0.055454,121.94,121.93,8.2037]
[1741757210208,31.76,122.0,121.92,55.77691437]
[1741757210413,31.76,122.0,121.95,8.2019]
[1741757210707,8.2001,121.99,121.95,8.2019]
[1741757211408,0.05269233,121.98,121.96,0.05951116]
[1741757213103,0.05269233,121.98,121.97,8.201]
[1741757217207,0.05269233,121.98,121.96,0.05951116]
[1741757217809,8.25329233,121.98,121.96,0.05951116]
[1741757218006,0.05269233,121.98,121.96,0.05951116]
[1741757218212,63.40556861,122.03,121.96,17.71352553]
[1741757218213,47.17866107,122.03,121.96,17.71352553]
[1741757218515,45.75155424,122.03,121.97,4.2443]
[1741757219015,45.75155424,122.03,121.99,8.1991]
[1741757219209,0.05792762,122.02,122.0,0.05867091]
[1741757220408,0.05792762,122.02,122.01,8.1983]
[1741757222117,31.72,122.05,122.0,0.05867091]
[1741757222310,31.72,122.05,122.02,8.197]
[1741757223209,31.7792331,122.05,122.02,8.197]
[1741757223914,0.0592331,122.05,122.02,8.197]
[1741757224309,8.2548331,122.05,122.01,11.28351127]
[1741757224507,8.2548331,122.05,122.01,19.48151127]
[1741757224708,0.0592331,122.05,122.03,11.28351127]
[1741757225015,0.0592331,122.05,121.97,194.2443]
[1741757225016,0.0592331,122.05,122.04,11.28351127]
[1741757225213,11.43788856,122.08,122.04,11.28351127]
[1741757225516,0.05904754,122.06,122.05,11.28351127]
[1741757226015,0.05904754,122.06,122.05,8.1956]
[1741757226916,0.05904754,122.06,122.05,19.47911127]
[1741757227313,0.05904754,122.06,122.05,8.1956]
[1741757227715,277.7,122.11,122.06,8.1944]
[1741757227916,11.28351127,122.1,122.06,8.1944]
[1741757228317,11.28351127,122.1,122.05,11.28351127]
[1741757228820,0.05880208,122.09,122.06,0.05264544]
[1741757230018,0.05880208,122.09,122.07,11.28351127]
[1741757230819,0.05880208,122.09,122.06,11.33615671]
[1741757232125,0.05880208,122.09,122.08,11.28351127]
[1741757232921,291.63155424,122.16,122.08,11.28351127]
[1741757233125,11.28351127,122.14,122.09,11.28351127]
[1741757233525,8.191,122.12,122.09,11.28351127]
[1741757233826,8.191,122.12,122.08,11.28351127]
[1741757234227,8.1923,122.1,122.09,0.06010469]
[1741757236737,0.0572774,122.11,122.09,0.06010469]
[1741757236932,0.0572774,122.11,122.1,19.47581127]
[1741757237635,0.0572774,122.11,122.09,11.34361596]
[1741757238739,0.0572774,122.11,122.09,19.53651596]
[1741757239142,0.0572774,122.11,122.1,11.28351127]
[1741757239342,0.0572774,122.11,122.1,19.47581127]
[1741757239644,0.0572774,122.11,122.09,11.34361596]
[1741757239940,8.1905,122.13,122.1,11.28351127]
[1741757240137,257.16351127,122.16,122.11,11.28351127]
[1741757240542,8.1896,122.14,122.11,19.47501127]
[1741757240842,11.28351127,122.14,122.09,11.28351127]
[1741757241142,11.28351127,122.12,122.1,0.05547346]
[1741757241339,11.28351127,122.11,122.1,0.05547346]
[1741757241741,19.47511127,122.11,122.1,0.05547346]
[1741757248740,19.47471127,122.12,122.1,0.05547346]
[1741757249145,0.05715265,122.13,122.1,8.24727346]
[1741757249350,0.05715265,122.13,122.1,19.53078473]
[1741757249646,0.05715265,122.13,122.11,11.28351127]
[1741757249951,0.05715265,122.13,122.11,19.47471127]
[1741757250149,0.05715265,122.13,122.1,0.05547346]
[1741757250544,0.05715265,122.13,122.1,8.24767346]
[1741757251953,245.88,122.16,122.12,11.28351127]
[1741757252151,257.16351127,122.16,122.11,42.94351127]
[1741757252351,265.35211127,122.16,122.11,51.13471127]
[1741757252848,11.28351127,122.14,122.11,31.66]
[1741757253046,11.28351127,122.14,122.12,0.05621704]
[1741757254054,42.92351127,122.13,122.12,0.05621704]
[1741757254753,51.11371127,122.13,122.12,0.05621704]
[1741757256054,39.8302,122.13,122.12,0.05621704]
[1741757256655,8.1902,122.13,122.12,0.05621704]
[1741757256853,17.6703759,122.15,122.12,0.05621704]
[1741757256854,8.1899,122.14,122.12,0.05621704]
[1741757257551,8.1902,122.13,122.12,0.05621704]
[1741757257750,49.3103759,122.15,122.12,0.05621704]
[1741757258154,8.1898,122.14,122.12,0.05621704]
[1741757259860,31.70060065,122.15,122.12,8.24681704]
[1741757260656,31.70060065,122.15,122.13,8.1901]
[1741757261155,8.24990065,122.15,122.12,0.05621704]
[1741757261362,0.06060065,122.15,122.12,0.05621704]
[1741757261863,8.1899,122.14,122.12,0.05621704]
[1741757262158,49.24977525,122.14,122.12,0.05621704]
[1741757263160,8.1902,122.13,122.12,0.05621704]
[1741757264363,57.43967525,122.14,122.12,0.05621704]
[1741757265468,39.8299,122.14,122.12,0.05621704]
[1741757267255,31.64,122.14,122.12,0.05621704]
[1741757268765,39.8296,122.14,122.12,0.05621704]
[1741757270166,8.1902,122.13,122.12,0.05621704]
[1741757270764,39.8299,122.14,122.12,0.05621704]
[1741757271167,31.64,122.14,122.12,0.05621704]
[1741757271864,0.06060065,122.15,122.12,0.05621704]
[1741757272665,11.43788856,122.16,122.12,17.66599229]
[1741757272865,125.81677417,122.17,122.12,17.66599229]
[1741757273067,125.81677417,122.17,122.15,8.1885]
[1741757273768,125.85098085,122.17,122.15,8.24940161]
[1741757274168,125.85098085,122.17,122.15,0.06090161]
[1741757275673,134.03868085,122.17,122.15,0.06090161]
[1741757276275,125.85098085,122.17,122.15,0.06090161]
[1741757276873,0.03420668,122.17,122.15,0.06090161]
[1741757278172,34.31366568,122.2,122.15,0.06090161]
[1741757278373,34.31366568,122.2,122.19,11.25313447]
[1741757278881,34.31366568,122.2,122.19,19.43933447]
[1741757279181,171.56832842,122.22,122.19,19.43933447]
[1741757279370,34.31366568,122.22,122.19,19.43933447]
[1741757279777,34.31366568,122.22,122.19,8.1862]
[1741757279977,42.49826568,122.22,122.18,19.49775854]
[1741757280174,45.56680015,122.22,122.18,0.05812407]
[1741757280474,65.91366568,122.22,122.18,0.05812407]
[1741757280873,17.58563948,122.21,122.18,0.05812407]
[1741757281170,8.1885,122.16,122.12,8.1908]
[1741757281371,49.18563948,122.17,122.12,8.1908]
[1741757281578,31.6,122.16,122.13,8.1898]
[1741757281777,31.6,122.16,122.11,2.1334]
[1741757282171,39.786,122.2,122.15,8.1884]
[1741757282366,31.6,122.2,122.15,8.1884]
[1741757282680,0.05429685,122.19,122.16,0.06163176]
[1741757282976,31.65429685,122.19,122.16,0.06163176]
[1741757284074,8.1873,122.18,122.16,0.06163176]
[1741757284272,31.65429685,122.19,122.16,0.06163176]
[1741757284778,31.65429685,122.19,122.16,8.24943176]
[1741757285181,39.84059685,122.19,122.16,0.06163176]
[1741757285980,8.187,122.18,122.16,0.06163176]
[1741757286169,31.65429685,122.19,122.16,0.06163176]
[1741757286583,39.84089685,122.19,122.16,0.06163176]
[1741757286785,31.65429685,122.19,122.16,0.06163176]
[1741757287178,39.84079685,122.19,122.16,8.24943176]
[1741757287786,39.84079685,122.19,122.16,0.06163176]
[1741757288583,31.65429685,122.19,122.16,8.24933176]
[1741757288885,0.05429685,122.19,122.16,8.24933176]
[1741757289487,0.05429685,122.19,122.16,0.06163176]
[1741757290188,0.05429685,122.19,122.16,8.24923176]
[1741757290385,0.05429685,122.19,122.16,0.06163176]
[1741757290777,0.05429685,122.19,122.16,17.64727124]
[1741757290987,0.05429685,122.19,122.17,2.2004]
[1741757291384,0.05429685,122.19,122.18,8.1869]
[1741757294096,0.05429685,122.19,122.17,41.9677]
[1741757294292,0.05429685,122.19,122.16,0.06163176]
[1741757296895,8.24069685,122.19,122.16,0.06163176]
[1741757299804,0.05429685,122.19,122.16,0.06163176]
[1741757300297,8.1876,122.17,122.16,0.06163176]
[1741757300699,17.58563948,122.17,122.09,31.58]
[1741757300896,8.1903,122.13,122.09,39.7727]
[1741757301898,0.05615569,122.12,122.1,0.05733175]
[1741757302492,0.05615569,122.12,122.11,8.1916]
[1741757303202,245.6,122.19,122.14,8.1895]
[1741757303397,277.18,122.19,122.14,8.1895]
[1741757303604,245.6,122.19,122.14,8.1895]
[1741757303803,245.6,122.19,122.12,49.16563948]
[1741757304003,245.6,122.19,122.13,4.1062]
[1741757304302,0.0561782,122.17,122.15,0.05578222]
[1741757305808,8.2437782,122.17,122.15,0.05578222]
[1741757305996,0.0561782,122.17,122.15,0.05578222]
[1741757306202,0.0561782,122.17,122.16,8.1882]
[1741757311611,0.0561782,122.17,122.15,0.05578222]
[1741757312006,0.0561782,122.17,122.15,17.6414217]
[1741757312207,0.0561782,122.17,122.16,8.1882]
[1741757314411,0.0561782,122.17,122.15,0.05578222]
[1741757315714,0.0561782,122.17,122.16,8.1882]
[1741757317913,0.0561782,122.17,122.15,0.05578222]
[1741757319821,34.31366568,122.22,122.16,49.14563948]
[1741757320120,34.31366568,122.22,122.19,17.58563948]
[1741757320320,34.31366568,122.22,122.2,31.56]
[1741757320921,34.31366568,122.22,122.2,31.62312009]
[1741757321316,34.31366568,122.22,122.21,17.58563948]
[1741757321714,34.31366568,122.22,122.21,25.77053948]
[1741757322926,140.28757417,122.28,122.21,25.77053948]
[1741757323116,140.28757417,122.28,122.21,57.33053948]
[1741757323319,140.28757417,122.28,122.23,0.05490444]
[1741757323520,8.1812,122.27,122.23,0.05490444]
[1741757324215,140.28737417,122.28,122.23,0.05490444]
[1741757325224,140.28737417,122.28,122.23,8.23820444]
[1741757325521,132.10697417,122.28,122.23,8.23820444]
[1741757325724,8.1809,122.27,122.23,8.23820444]
[1741757327528,14.4707,122.28,122.23,0.05490444]
[1741757327726,14.4707,122.28,122.24,8.1828]
[1741757329330,245.6,122.29,122.24,31.54]
[1741757329724,245.6,122.29,122.26,8.181]
[1741757330118,245.6,122.29,122.26,8.23332951]
[1741757330521,245.6,122.29,122.26,0.05232951]
[1741757332930,8.1807,122.28,122.26,0.05232951]
[1741757333133,245.6,122.29,122.26,0.05232951]
[1741757333634,8.1809,122.27,122.26,0.05232951]
[1741757344347,8.1809,122.27,122.26,0.05232951]
[1741757345643,245.6,122.29,122.26,0.05232951]
[1741757346747,253.7799,122.29,122.26,8.23382951]
[1741757348250,8.1803,122.28,122.26,0.05232951]
[1741757348544,245.6,122.29,122.26,0.05232951]
[1741757349151,8.1809,122.27,122.26,0.05232951]
[1741757349344,245.6,122.29,122.26,0.05232951]
[1741757350453,8.1805,122.28,122.26,0.05232951]
[1741757350753,245.6,122.29,122.26,0.05232951]
[1741757351647,8.1808,122.28,122.26,0.05232951]
[1741757351854,245.6,122.29,122.26,0.05232951]
[1741757352451,263.16280726,122.29,122.26,0.05232951]
[1741757353251,253.7799,122.29,122.26,0.05232951]
[1741757353857,8.1803,122.28,122.26,0.05232951]
[1741757354245,31.5,122.3,122.26,0.05232951]
[1741757354451,8.1798,122.29,122.26,0.05232951]
[1741757355053,8.1802,122.28,122.26,0.05232951]
[1741757355655,8.1799,122.29,122.26,0.05232951]
[1741757355854,31.5,122.3,122.26,0.05232951]
[1741757356051,17.56280726,122.29,122.26,0.05232951]
[1741757356361,8.1809,122.27,122.26,0.05232951]
[1741757357054,8.1826,122.25,122.13,91.07394709]
[1741757357253,8.1826,122.25,122.17,21.83690726]
[1741757357254,31.5,122.24,122.17,21.83690726]
[1741757357751,31.5,122.24,122.2,8.1851]
[1741757358156,31.5,122.24,122.21,0.0598078]
[1741757358157,0.05471714,122.23,122.21,0.0598078]
[1741757358960,0.05471714,122.23,122.21,8.2443078]
[1741757359151,0.05471714,122.23,122.21,0.0598078]
[1741757361161,8.1842,122.22,122.21,0.0598078]
[1741757362161,11.3154245,122.26,122.21,17.62261506]
[1741757362351,11.3154245,122.26,122.23,17.56280726]
[1741757362862,11.3154245,122.26,122.25,8.1822]
[1741757363258,125.81677417,122.27,122.25,17.56280726]
[1741757363662,125.81677417,122.27,122.26,8.1815]
[1741757364567,284.42398675,122.3,122.26,8.1815]
[1741757364761,53.87328474,122.31,122.26,8.1815]
[1741757365066,53.87328474,122.31,122.27,0.05949127]
[1741757365660,85.37328474,122.31,122.27,0.05949127]
[1741757365968,85.37328474,122.31,122.27,8.24029127]
[1741757366568,8.179,122.3,122.27,0.05949127]
[1741757366768,77.19498474,122.31,122.27,0.05949127]
[1741757367467,85.37338474,122.31,122.27,8.23979127]
[1741757367871,85.37338474,122.31,122.27,0.05949127]
[1741757368073,39.6784,122.31,122.27,0.05949127]
[1741757368264,8.1784,122.31,122.27,0.05949127]
[1741757368571,8.1784,122.31,122.28,8.1802]
[1741757369270,8.1784,122.31,122.27,0.05949127]
[1741757369471,31.48,122.3,122.27,8.24009127]
[1741757370062,31.48,122.3,122.27,0.05949127]
[1741757370764,49.04280726,122.3,122.27,0.05949127]
[1741757371274,8.18,122.29,122.27,0.05949127]
[1741757372474,8.1802,122.28,122.27,0.05949127]
[1741757373274,25.74300726,122.28,122.22,192.0647]
[1741757373577,31.48,122.27,122.22,2.0647]
[1741757373767,31.48,122.27,122.23,8.183]
[1741757374775,0.05421604,122.26,122.24,8.23581848]
[1741757375368,0.05421604,122.26,122.24,0.05301848]
[1741757376878,0.05421604,122.26,122.25,8.1822]
[1741757378476,34.31366568,122.3,122.27,8.1807]
[1741757378774,34.31366568,122.3,122.27,17.56280726]
[1741757378970,30.96966568,122.3,122.28,4.2348]
[1741757379175,40.7765074,122.31,122.29,49.04280726]
[1741757379376,34.09264863,122.33,122.29,49.04280726]
[1741757379777,34.09264863,122.33,122.3,0.05452772]
[1741757379969,34.09264863,122.33,122.32,8.1775]
[1741757380169,34.09264863,122.33,122.3,0.05452772]
[1741757380375,34.09264863,122.33,122.32,8.1775]
[1741757380776,34.09264863,122.33,122.3,0.05452772]
[1741757381778,42.26994863,122.33,122.3,0.05452772]
[1741757382788,8.1773,122.33,122.3,0.05452772]
[1741757383889,31.46,122.34,122.3,0.05452772]
[1741757384088,49.02280726,122.34,122.3,0.05452772]
[1741757384285,17.56280726,122.32,122.3,0.05452772]
[1741757384482,31.46,122.31,122.23,6.1816]
[1741757384684,17.56280726,122.3,122.23,6.1816]
[1741757385581,0.05910311,122.28,122.25,0.06295573]
[1741757385791,8.1815,122.26,122.25,0.06295573]
[1741757388387,31.46,122.27,122.25,0.06295573]
[1741757390292,39.6411,122.27,122.25,0.06295573]
[1741757390988,31.46,122.27,122.25,0.06295573]
[1741757391687,0.05910311,122.28,122.25,0.06295573]
[1741757391881,31.51910311,122.28,122.25,0.06295573]
[1741757392989,39.69970311,122.28,122.25,0.06295573]
[1741757393391,8.1815,122.26,122.25,0.06295573]
[1741757394389,8.1811,122.27,122.25,0.06295573]
[1741757394587,49.08191037,122.28,122.25,0.06295573]
[1741757394991,57.26251037,122.28,122.25,0.06295573]
[1741757395192,49.08191037,122.28,122.25,0.06295573]
[1741757395493,8.1814,122.27,122.25,0.06295573]
[1741757395992,8.1815,122.26,122.25,0.06295573]
[1741757396388,49.08191037,122.28,122.25,0.06295573]
[1741757397194,49.08191037,122.28,122.25,8.24505573]
[1741757397398,31.51910311,122.28,122.25,0.06295573]
[1741757398191,31.51910311,122.28,122.26,8.181]
[1741757398393,0.05910311,122.28,122.25,0.06295573]
[1741757398998,8.23970311,122.28,122.25,0.06295573]
[1741757399397,8.181,122.27,122.25,0.06295573]
[1741757400592,8.23960311,122.28,122.25,8.24515573]
[1741757400793,0.05910311,122.28,122.25,0.06295573]
[1741757400998,8.1812,122.27,122.25,0.06295573]
[1741757401401,0.05910311,122.28,122.25,0.06295573]
[1741757401899,17.62191037,122.28,122.25,0.06295573]
[1741757402298,8.1813,122.27,122.25,0.06295573]
[1741757402498,31.46,122.26,122.25,0.06295573]
[1741757403197,39.6415,122.26,122.25,0.06295573]
[1741757404094,0.05910311,122.28,122.25,0.06295573]
[1741757404296,83.92120584,122.35,122.26,17.56280726]
[1741757404502,6.451,122.35,122.3,17.56280726]
[1741757404692,6.451,122.35,122.3,49.02280726]
[1741757404693,90.81931554,122.35,122.3,49.02280726]
[1741757404897,90.81931554,122.35,122.28,49.02280726]
[1741757405102,8.1766,122.34,122.28,49.02280726]
[1741757405701,8.1766,122.34,122.3,0.05694351]
[1741757405904,8.1766,122.34,122.3,8.23534351]
[1741757406502,122.27931554,122.35,122.3,8.23534351]
[1741757406696,130.45501554,122.35,122.3,8.23534351]
[1741757406895,122.27931554,122.35,122.3,8.23534351]
[1741757407298,31.46,122.35,122.3,8.23534351]
[1741757407803,8.1764,122.34,122.3,8.23534351]
[1741757408096,249.7427,122.36,122.32,8.177]
[1741757408497,249.7427,122.36,122.33,0.06104491]
[1741757409497,257.9181,122.36,122.33,0.06104491]
[1741757410299,249.7427,122.36,122.33,0.06104491]
[1741757410505,8.1756,122.35,122.33,0.06104491]
[1741757411194,281.1827,122.36,122.33,0.06104491]
[1741757411195,289.3578,122.36,122.33,0.06104491]
[1741757411799,281.1827,122.36,122.33,0.06104491]
[1741757412304,281.1827,122.36,122.33,8.23754491]
[1741757413004,281.1827,122.36,122.33,0.06104491]
[1741757413599,8.176,122.35,122.33,0.06104491]
[1741757414005,281.1827,122.36,122.33,0.06104491]
[1741757414202,8.1762,122.34,122.33,0.06104491]
[1741757417903,8.1779,122.32,122.26,239.00280726]
[1741757418204,31.44,122.33,122.26,239.00280726]
[1741757418401,31.44,122.33,122.29,8.179]
[1741757419110,0.05249673,122.32,122.3,0.05321255]
[1741757419707,0.05249673,122.32,122.3,8.23201255]
[1741757420411,0.05249673,122.32,122.3,0.05321255]
[1741757420910,0.05249673,122.32,122.3,8.23161255]
[1741757422402,0.05249673,122.32,122.3,0.05321255]
[1741757422610,8.23009673,122.32,122.3,0.05321255]
[1741757423210,0.05249673,122.32,122.3,0.05321255]
[1741757423506,0.05249673,122.32,122.3,8.23211255]
[1741757423808,8.22999673,122.32,122.3,0.05321255]
[1741757424505,0.05249673,122.32,122.3,8.23201255]
[1741757425913,0.05249673,122.32,122.31,8.1782]
[1741757426310,0.05249673,122.32,122.31,19.40230099]
[1741757428314,0.05249673,122.32,122.31,8.1782]
[1741757431114,0.05249673,122.32,122.3,0.05321255]
[1741757431712,0.05249673,122.32,122.31,8.1782]
[1741757434821,0.05249673,122.32,122.3,8.23181255]
[1741757435022,0.05249673,122.32,122.3,0.05321255]
[1741757435931,0.05249673,122.32,122.31,8.1782]
[1741757436424,0.05249673,122.32,122.3,0.05321255]
[1741757437026,8.23009673,122.32,122.3,0.05321255]
[1741757437228,0.05249673,122.32,122.3,0.05321255]
[1741757437725,0.05249673,122.32,122.31,8.1782]
[1741757437926,0.05249673,122.32,122.3,0.05321255]
[1741757438126,0.05249673,122.32,122.3,8.23171255]
[1741757438329,0.05249673,122.32,122.3,0.05321255]
[1741757439829,0.05249673,122.32,122.31,8.1782]
[1741757441025,0.05249673,122.32,122.3,0.05321255]
[1741757442928,8.23009673,122.32,122.3,0.05321255]
[1741757444029,8.1782,122.31,122.3,0.05321255]
[1741757444830,11.31072484,122.38,122.31,190.0]
[1741757445030,11.31072484,122.38,122.32,17.53911632]
[1741757445225,11.31072484,122.38,122.26,207.53911632]
[1741757445226,17.53911632,122.35,122.26,207.53911632]
[1741757445426,31.42,122.34,122.26,190.0]
[1741757445625,25.71601632,122.33,122.27,8.1807]
[1741757445827,17.53911632,122.33,122.25,2.1278]
[1741757446025,17.53911632,122.33,122.29,0.06103233]
[1741757446630,33.6357,122.34,122.3,8.1789]
[1741757446926,33.6357,122.34,122.29,0.06103233]
[1741757449329,245.32,122.36,122.29,0.06103233]
[1741757449533,276.72,122.36,122.29,0.06103233]
[1741757450036,276.72,122.36,122.33,8.1763]
[1741757450334,276.72,122.36,122.33,0.061621]
[1741757450740,276.72,122.36,122.34,8.1762]
[1741757451132,245.32,122.36,122.34,8.1762]
[1741757451531,245.32,122.36,122.33,0.061621]
[1741757451731,245.32,122.36,122.35,8.1755]
[1741757451931,245.32,122.36,122.33,0.061621]
[1741757453336,245.32,122.36,122.34,8.1762]
[1741757453639,245.32,122.36,122.33,0.061621]
[1741757453939,245.32,122.36,122.35,8.1755]
[1741757454140,4.2708,122.37,122.33,0.061621]
[1741757454341,2.1938,122.37,122.33,0.061621]
[1741757456733,2.1938,122.37,122.36,8.1748]
[1741757457940,33.5938,122.37,122.36,8.1748]
[1741757459344,33.5938,122.37,122.34,8.1755]
[1741757459539,11.22549094,122.35,122.33,0.061621]
[1741757460242,11.22549094,122.35,122.33,8.238121]
[1741757460438,11.22549094,122.35,122.33,0.061621]
[1741757460843,31.4,122.34,122.33,0.061621]
[1741757461342,31.4,122.34,122.33,8.238421]
[1741757466346,31.4,122.34,122.33,0.061621]
[1741757467146,31.4,122.34,122.33,8.238421]
[1741757467347,11.22549094,122.35,122.33,8.238421]
[1741757467545,13.41929094,122.37,122.33,0.061621]
[1741757467745,11.22549094,122.39,122.34,11.22549094]
[1741757468147,13.32739094,122.4,122.35,11.22549094]
[1741757468347,11.22549094,122.39,122.34,11.22549094]
[1741757468648,11.22549094,122.39,122.36,0.05859789]
[1741757468845,11.22549094,122.39,122.37,8.1738]
[1741757469039,11.22549094,122.39,122.36,0.05859789]
[1741757469247,42.62549094,122.41,122.36,0.05859789]
[1741757469949,42.62549094,122.41,122.38,8.1731]
[1741757470252,11.22549094,122.41,122.38,8.1731]
[1741757470549,11.22549094,122.41,122.36,0.05859789]
[1741757470850,19.39719094,122.41,122.37,8.1738]
[1741757471145,11.22549094,122.4,122.38,8.1734]
[1741757471342,11.22549094,122.41,122.38,8.1734]
[1741757471742,11.22549094,122.41,122.38,0.05624154]
[1741757471946,11.22549094,122.39,122.38,0.05624154]
[1741757472247,11.22549094,122.39,122.32,42.60549094]
[1741757472450,11.22549094,122.37,122.32,42.60549094]
[1741757472851,11.22549094,122.37,122.33,8.1766]
[1741757473050,11.22549094,122.37,122.31,31.38]
[1741757473252,0.05478484,122.36,122.34,0.0562818]
[1741757473450,0.05478484,122.36,122.34,8.2321818]
[1741757474358,0.05478484,122.36,122.34,0.0562818]
[1741757474959,0.05478484,122.36,122.35,8.1755]
[1741757476152,8.484e-05,122.36,122.35,8.1755]
[1741757476357,31.38,122.42,122.39,8.1727]
[1741757477161,30.01606951,122.43,122.39,8.1727]
[1741757477464,35.6993,122.43,122.39,0.05318218]
[1741757477857,8.1712,122.42,122.39,0.05318218]
[1741757478057,17.52596951,122.42,122.39,0.05318218]
[1741757478660,8.1722,122.4,122.39,0.05318218]
[1741757480364,25.69626951,122.42,122.39,0.05318218]
[1741757480565,17.52596951,122.42,122.39,0.05318218]
[1741757480860,31.38,122.43,122.39,0.05318218]
[1741757481060,4.2407,122.46,122.39,0.05318218]
[1741757481365,45.29312705,122.47,122.42,17.52596951]
[1741757482761,45.29312705,122.47,122.45,8.1675]
[1741757483164,45.29312705,122.47,122.45,0.06239941]
[1741757483860,90.81931554,122.48,122.46,17.52596951]
[1741757484056,90.81931554,122.48,122.45,0.06239941]
[1741757484262,108.34528505,122.48,122.45,0.06239941]
[1741757484567,17.52596951,122.46,122.35,246.47085631]
[1741757484866,31.36,122.47,122.38,17.52596951]
[1741757485067,31.36,122.47,122.41,8.1706]
[1741757485369,31.36,122.47,122.4,17.52596951]
[1741757485562,39.5271,122.47,122.42,0.05960709]
[1741757485869,0.05704339,122.45,122.42,0.05960709]
[1741757489765,0.05704339,122.45,122.42,8.22900709]
[1741757489967,0.05704339,122.45,122.42,31.41960709]